bitfinex/quotes_ETHUSD_20240717
["timestamp","ask_amount","ask_price","bid_price","bid_amount"]
[1721207410501,3.31284073,3492.1,3491.6,2.2941]
[1721207410702,3.31284073,3492.1,3491.7,0.55]
[1721207411621,0.44922073,3492.1,3491.7,0.55]
[1721207414182,3.31283073,3492.1,3491.7,0.55]
[1721207416022,0.44922073,3492.1,3491.7,0.55]
[1721207416230,2.86354,3492.2,3491.7,0.55]
[1721207416929,2.86362,3492.1,3491.7,0.55]
[1721207419499,2.86354,3492.2,3491.7,0.55]
[1721207419706,5.72557873,3492.2,3491.7,0.55]
[1721207419891,2.86361,3492.1,3491.7,0.55]
[1721207428382,2.86344,3492.3,3491.7,0.55]
[1721207429839,2.86317,3492.7,3491.8,2.86379]
[1721207430043,2.86317,3492.7,3491.9,0.55]
[1721207430848,2.86297,3492.9,3492.0,0.05727002]
[1721207431049,2.86297,3492.9,3492.2,2.86351]
[1721207431349,2.86288,3493.0,3492.3,5.77779]
[1721207431556,2.86288,3493.0,3492.4,0.891433]
[1721207433381,0.449065,3493.4,3492.4,0.55]
[1721207433382,2.86311,3492.7,3492.4,0.55]
[1721207433583,2.2653,3492.9,3491.3,10.22419]
[1721207433584,2.86353,3492.2,3491.3,10.22419]
[1721207433803,3.311655,3493.4,3491.3,10.22419]
[1721207433804,2.86385,3491.8,3491.3,7.36]
[1721207433962,2.86385,3491.8,3491.1,2.3774]
[1721207434289,2.86385,3491.8,3491.1,5.24182]
[1721207434492,5.72744,3492.0,3491.1,5.24182]
[1721207434800,2.86378,3491.9,3491.2,2.86434]
[1721207434963,2.86378,3491.9,3491.2,3.627362]
[1721207435295,2.86378,3491.9,3491.2,2.86434]
[1721207436049,2.86388,3491.8,3491.1,2.3774]
[1721207436386,2.86388,3491.8,3491.1,8.24181]
[1721207436549,2.86388,3491.8,3491.2,0.55]
[1721207436910,2.86388,3491.8,3491.2,3.55]
[1721207438716,2.4638,3492.6,3491.5,2.86407]
[1721207438901,2.86352,3492.3,3491.6,0.55]
[1721207439207,2.86337,3492.4,3491.6,3.41401]
[1721207440087,2.86337,3492.4,3491.7,2.86393]
[1721207440290,5.32699,3492.6,3491.8,0.55]
[1721207440291,2.86332,3492.5,3491.8,0.55]
[1721207440694,2.86336,3492.4,3491.8,0.55]
[1721207441325,2.86345,3492.3,3491.8,0.55]
[1721207441485,2.86345,3492.3,3491.6,3.41396]
[1721207441672,2.86336,3492.4,3491.7,2.86393]
[1721207442030,2.86336,3492.4,3491.8,0.55]
[1721207443514,5.327,3492.6,3491.8,0.55]
[1721207444198,2.86342,3492.4,3491.8,0.55]
[1721207445289,2.86353,3492.2,3491.8,0.55]
[1721207445524,2.86369,3492.0,3491.5,0.55]
[1721207446902,2.86353,3492.2,3491.5,3.41409]
[1721207447630,2.86365,3492.1,3491.5,3.41409]
[1721207447941,2.8635,3492.3,3491.5,3.41409]
[1721207448327,2.86352,3492.2,3491.5,3.41409]
[1721207448636,2.86339,3492.4,3491.7,2.8639]
[1721207448843,2.86339,3492.4,3491.8,0.55]
[1721207449133,2.8632,3492.6,3491.8,0.55]
[1721207449330,2.86328,3492.5,3491.8,0.55]
[1721207449531,2.86337,3492.4,3491.8,0.55]
[1721207450840,5.7268,3492.4,3491.8,0.55]
[1721207451042,2.86337,3492.4,3491.8,0.55]
[1721207451346,5.7268,3492.4,3491.8,0.55]
[1721207451829,2.86337,3492.4,3491.8,0.55]
[1721207452250,2.86332,3492.5,3491.8,3.41384]
[1721207452531,2.86323,3492.6,3491.8,3.41384]
[1721207452741,2.86342,3492.4,3491.8,3.41384]
[1721207453536,2.86344,3492.3,3491.8,0.55]
[1721207453715,2.86344,3492.3,3491.7,0.55]
[1721207454041,2.86335,3492.5,3491.7,3.41391]
[1721207454340,1.005,3492.4,3491.7,3.41391]
[1721207454546,3.86839,3492.4,3491.7,3.41391]
[1721207455936,2.86347,3492.3,3491.7,0.55]
[1721207456150,2.86369,3492.0,3491.5,0.55]
[1721207457142,2.8636,3492.1,3491.5,3.41408]
[1721207457837,3.86848,3492.3,3491.5,3.41408]
[1721207458154,1.005,3492.5,3491.8,5.26294]
[1721207458321,3.86832,3492.5,3491.9,0.55]
[1721207458842,2.86336,3492.4,3491.9,0.55]
[1721207461046,2.8636,3492.1,3491.7,0.55]
[1721207461267,2.8636,3492.1,3491.6,0.55]
[1721207461607,2.86358,3492.2,3491.6,0.55]
[1721207461807,2.86358,3492.2,3491.6,3.414]
[1721207462333,2.8635,3492.3,3491.6,3.414]
[1721207462523,2.86311,3492.7,3491.8,2.86381]
[1721207462728,2.86311,3492.7,3491.9,2.86371]
[1721207463036,2.86311,3492.7,3492.0,3.41368]
[1721207463221,4.96605899,3493.5,3491.3,0.59875387]
[1721207463222,2.2785,3492.4,3491.3,0.59875387]
[1721207463554,2.864,3491.7,3491.2,7.36]
[1721207463758,2.864,3491.7,3490.9,2.86454]
[1721207463943,3.58874687,3491.6,3490.9,2.86454]
[1721207464244,3.58874687,3491.6,3491.0,1.005]
[1721207464245,0.72473687,3491.5,3491.0,1.005]
[1721207465227,0.72473687,3491.5,3491.2,1.005]
[1721207465541,2.86379,3491.9,3491.2,3.86933]
[1721207465858,0.72466794,3491.8,3491.2,3.86933]
[1721207466022,0.72466794,3491.8,3491.3,0.55]
[1721207466745,0.72466794,3491.8,3491.3,3.41426]
[1721207467651,0.72466794,3491.7,3491.6,2.86401]
[1721207467943,2.86315,3492.7,3491.7,2.86387]
[1721207467944,2.86327,3492.5,3491.7,2.86387]
[1721207468149,0.72453543,3492.4,3491.8,2.86381]
[1721207468347,0.72453543,3492.4,3491.9,0.55]
[1721207468654,2.86315,3492.7,3491.9,3.41371]
[1721207468851,2.3832,3493.1,3491.9,3.41371]
[1721207468852,3.58770163,3492.6,3491.9,3.41371]
[1721207469020,0.72451163,3492.5,3491.9,3.41371]
[1721207469225,3.58778163,3492.5,3491.9,3.41371]
[1721207469548,0.72451163,3492.4,3491.9,3.41371]
[1721207469757,0.72451163,3492.3,3491.9,3.41371]
[1721207469961,0.72451163,3492.2,3491.9,3.41371]
[1721207470122,2.86312,3492.7,3491.9,3.41371]
[1721207470457,2.86306,3492.8,3491.9,3.41371]
[1721207470458,0.72450976,3492.6,3492.4,2.86333]
[1721207470613,2.2644,3493.5,3492.5,0.55]
[1721207470825,1.90218715,3493.3,3492.5,0.55]
[1721207471029,2.86279,3493.1,3492.5,0.55]
[1721207471230,0.72439459,3493.0,3492.5,0.55]
[1721207471766,2.86262,3493.3,3492.5,3.41326]
[1721207471925,0.72435342,3493.2,3492.5,3.41326]
[1721207472121,2.86262,3493.3,3492.6,2.86319]
[1721207472367,0.72435032,3493.2,3492.7,0.55]
[1721207473282,0.72432399,3493.1,3492.7,0.55]
[1721207473569,0.72432399,3493.0,3492.7,0.55]
[1721207473771,2.86262,3493.3,3492.7,0.55]
[1721207473977,0.724318,3493.2,3492.7,0.55]
[1721207474484,3.587028,3493.2,3492.7,0.55]
[1721207474773,0.724318,3493.1,3492.5,3.41327]
[1721207474978,0.72433886,3493.0,3492.5,0.55]
[1721207475274,0.72433886,3492.9,3492.5,0.55]
[1721207475478,2.86279,3493.1,3492.5,0.55]
[1721207475766,2.86341,3492.4,3491.6,10.82276387]
[1721207475967,2.86325,3492.6,3491.7,3.0]
[1721207476168,5.27466,3493.3,3492.0,2.86368]
[1721207476169,0.72448135,3492.5,3492.0,2.86368]
[1721207476332,2.86314,3492.7,3492.0,2.86368]
[1721207476528,3.58767114,3492.6,3492.0,2.86368]
[1721207476769,0.72447114,3492.5,3492.0,2.86368]
[1721207476935,2.8632,3492.6,3492.1,0.55]
[1721207477131,2.86314,3492.7,3492.1,0.55]
[1721207477350,2.86314,3492.7,3492.2,2.4034]
[1721207477545,3.58760298,3492.6,3492.3,0.55]
[1721207477750,2.8632,3492.6,3492.3,0.55]
[1721207477966,2.86298,3492.9,3492.3,0.55]
[1721207478179,2.86298,3492.9,3492.3,3.41342]
[1721207478392,0.72442382,3492.8,3492.3,0.55]
[1721207479572,0.72442382,3492.8,3492.1,0.55]
[1721207479775,2.86328,3492.5,3491.9,0.55]
[1721207480082,0.72442382,3492.4,3491.9,0.55]
[1721207480287,2.86349,3492.3,3491.7,2.3324]
[1721207480480,2.86353,3492.2,3491.6,7.36]
[1721207480682,2.86376,3492.0,3491.6,7.36]
[1721207480894,2.86358,3492.2,3491.6,7.36]
[1721207481194,0.72458289,3492.1,3491.6,7.36]
[1721207481402,2.86345,3492.3,3491.7,2.86393]
[1721207481557,3.58807202,3492.2,3491.7,2.86393]
[1721207481756,2.86352,3492.2,3491.6,10.224]
[1721207481957,0.724559,3492.1,3491.7,0.55]
[1721207482461,2.86341,3492.4,3491.7,0.55]
[1721207482663,2.86352,3492.2,3491.7,0.55]
[1721207482869,0.72454916,3492.1,3491.7,0.55]
[1721207483415,3.58817916,3492.1,3491.7,0.55]
[1721207483584,0.72454916,3492.0,3491.7,0.55]
[1721207483980,2.86345,3492.3,3491.7,0.55]
[1721207484221,0.72455849,3492.2,3491.7,0.55]
[1721207484728,0.72455596,3492.1,3491.7,3.41393]
[1721207484885,2.86336,3492.4,3491.7,3.41393]
[1721207485086,0.72449885,3492.3,3491.7,3.41393]
[1721207485645,0.72449885,3492.3,3491.9,2.86372]
[1721207485787,2.86325,3492.6,3492.0,0.55]
[1721207485986,0.7245313,3492.5,3492.0,0.55]
[1721207486427,2.86402,3491.6,3491.1,3.0]
[1721207486723,2.86373,3492.0,3491.1,2.86437]
[1721207486902,2.86391,3491.8,3491.2,3.0]
[1721207487118,0.72468455,3491.7,3491.2,3.0]
[1721207487788,2.8639,3491.8,3491.2,3.0]
[1721207487997,0.72470791,3491.7,3491.2,3.0]
[1721207488591,2.86381,3491.9,3491.2,3.0]
[1721207488781,2.86381,3491.9,3491.3,0.55]
[1721207488782,0.72470286,3491.8,3491.3,0.55]
[1721207488983,2.86346,3492.3,3491.4,2.3614]
[1721207489226,2.86346,3492.3,3491.5,0.55]
[1721207489227,0.72465187,3492.2,3491.5,0.55]
[1721207489427,3.58824187,3492.2,3491.5,3.41407]
[1721207489720,0.72465187,3492.1,3491.5,3.41407]
[1721207490288,3.58827187,3492.1,3491.5,3.41407]
[1721207490490,0.72465187,3492.0,3491.5,3.41407]
[1721207490891,2.86362,3492.1,3491.5,3.41407]
[1721207491117,0.72463442,3492.0,3491.5,3.41407]
[1721207491633,0.72463442,3492.0,3491.5,0.55]
[1721207492625,3.58832442,3492.0,3491.5,0.55]
[1721207492829,0.72463442,3491.9,3491.5,0.55]
[1721207493052,2.86365,3492.1,3491.5,0.55]
[1721207493207,0.72463766,3492.0,3491.5,0.55]
[1721207493437,3.58832766,3492.0,3491.5,0.55]
[1721207493770,0.72463766,3491.9,3491.5,0.55]
[1721207494139,2.86369,3492.0,3491.5,0.55]
[1721207494344,0.72464031,3491.9,3491.5,0.55]
[1721207495227,2.8636,3492.1,3491.5,0.55]
[1721207495431,3.58832209,3492.0,3491.5,0.55]
[1721207495661,0.72463209,3491.9,3491.5,0.55]
[1721207497478,2.86369,3492.0,3491.5,0.55]
[1721207497695,4.96395698,3493.2,3491.5,0.55]
[1721207497696,2.4811,3493.0,3491.6,0.05727419]
[1721207497830,2.86324,3492.6,3491.9,2.86376]
[1721207498031,0.72452466,3492.5,3492.0,3.41366]
[1721207498256,2.86312,3492.7,3492.0,3.41361]
[1721207498534,0.72445136,3492.6,3492.3,2.86339]
[1721207498739,3.86801,3492.9,3492.4,0.55]
[1721207499053,1.005,3492.7,3492.1,3.0]
[1721207499351,0.72443935,3492.6,3492.2,0.55]
[1721207499558,1.005,3492.7,3492.2,0.55]
[1721207499886,1.005,3492.5,3492.2,0.55]
[1721207500374,1.005,3492.5,3492.0,3.0]
[1721207500375,5.34422,3492.7,3492.1,0.55]
[1721207500582,0.65170541,3492.6,3492.1,0.55]
[1721207500947,5.34422,3492.7,3492.1,0.55]
[1721207501269,2.4811,3492.7,3492.1,0.55]
[1721207501486,2.86292,3493.0,3492.1,3.4136]
[1721207501633,2.86281,3493.1,3492.2,3.0]
[1721207501634,3.51454742,3492.9,3492.2,3.0]
[1721207501832,2.86281,3493.1,3492.3,0.55]
[1721207502063,3.51442155,3493.0,3492.3,3.4134]
[1721207502267,2.86286,3493.0,3492.3,3.4134]
[1721207502468,2.8631,3492.8,3492.3,0.55]
[1721207502672,2.86286,3493.0,3492.3,0.55]
[1721207502673,2.86312,3492.7,3492.3,0.55]
[1721207502849,2.86312,3492.7,3492.2,0.55]
[1721207503051,2.863,3492.9,3492.2,0.55]
[1721207503231,2.86271,3493.2,3492.3,2.3174]
[1721207503432,2.86295,3492.9,3492.4,0.55]
[1721207504731,2.86303,3492.8,3492.4,0.55]
[1721207504984,2.3376,3492.7,3492.2,0.55]
[1721207505280,2.3376,3492.7,3491.3,0.59875387]
[1721207505281,2.86336,3492.4,3491.3,0.59875387]
[1721207505612,2.8636,3492.2,3491.4,2.86418]
[1721207506111,2.8636,3492.2,3491.5,2.86409]
[1721207506459,2.86325,3492.6,3491.7,2.86385]
[1721207506668,0.65169987,3492.5,3491.8,3.41379]
[1721207506961,2.86305,3492.8,3491.8,0.55]
[1721207506962,2.86344,3492.3,3491.8,0.55]
[1721207507202,2.86344,3492.3,3491.7,0.55]
[1721207507687,2.86353,3492.2,3491.7,0.55]
[1721207507891,2.86353,3492.2,3491.5,0.55]
[1721207508093,2.86353,3492.2,3491.5,3.41408]
[1721207511205,2.86339,3492.4,3491.6,2.864]
[1721207511406,2.86339,3492.4,3491.7,0.55]
[1721207511635,5.2025,3492.9,3491.7,0.55]
[1721207511932,2.86349,3492.3,3491.7,0.55]
[1721207512548,2.86352,3492.2,3491.7,0.55]
[1721207513193,2.86362,3492.1,3491.7,0.55]
[1721207513399,2.86362,3492.1,3491.5,0.55]
[1721207514429,2.86362,3492.1,3491.5,3.41409]
[1721207515810,2.86377,3491.9,3491.5,0.55]
[1721207516028,2.86377,3491.9,3491.4,0.55]
[1721207516674,2.86385,3491.8,3491.4,0.55]
[1721207516880,2.86418,3491.4,3491.1,7.36]
[1721207517043,3.150748,3491.3,3490.6,19.81]
[1721207517382,2.86418,3491.4,3490.5,5.15125]
[1721207517383,2.86435,3491.2,3490.5,2.2864]
[1721207517666,2.86435,3491.2,3490.5,5.15131]
[1721207518131,2.86435,3491.2,3490.6,2.86483]
[1721207518334,2.86418,3491.4,3490.6,2.86483]
[1721207518541,7.42205939,3499.5,3491.2,2.86431]
[1721207518542,2.86347,3492.3,3491.2,2.86431]
[1721207518741,2.4487,3493.1,3492.0,2.3362]
[1721207519076,2.86375,3492.0,3491.1,2.93495387]
[1721207519280,2.4487,3492.3,3491.1,5.20059]
[1721207519281,2.86378,3491.9,3491.1,5.20059]
[1721207519580,2.86378,3491.9,3491.0,2.86444]
[1721207519581,3.5157703,3491.8,3491.0,2.86444]
[1721207519741,0.6519003,3491.7,3491.1,2.86441]
[1721207519935,2.86387,3491.8,3491.2,0.55]
[1721207520174,0.65192196,3491.7,3491.2,0.55]
[1721207520637,0.65192196,3491.7,3491.2,3.41433]
[1721207520844,2.86386,3491.8,3491.2,3.41433]
[1721207521856,2.86394,3491.7,3491.2,0.55]
[1721207522148,2.86411,3491.5,3490.6,5.72956]
[1721207522369,2.86411,3491.5,3490.8,2.86465]
[1721207522544,2.86411,3491.5,3490.8,2.86462]
[1721207523082,2.86411,3491.5,3490.9,2.86458]
[1721207523397,0.65200501,3491.4,3490.9,2.86458]
[1721207523673,2.86411,3491.5,3491.0,0.55]
[1721207523878,0.65199909,3491.4,3491.0,0.55]
[1721207524386,2.86365,3492.1,3491.0,0.55]
[1721207524387,2.4516,3493.0,3492.2,2.86347]
[1721207524585,3.5146407,3492.9,3492.2,5.72694]
[1721207524801,0.6516907,3492.8,3492.3,0.55]
[1721207524998,0.65164217,3492.7,3492.3,0.55]
[1721207525580,2.86346,3492.3,3491.3,2.86422]
[1721207525778,0.65164217,3492.2,3491.6,2.86396]
[1721207525976,0.65164217,3492.2,3491.7,0.55]
[1721207527044,2.4765,3492.1,3491.7,0.55]
[1721207527245,3.82814639,3492.0,3491.5,0.55]
[1721207527447,3.17650422,3492.0,3491.3,3.41418]
[1721207527643,0.65182147,3491.9,3491.3,3.41418]
[1721207528054,3.17650422,3492.0,3491.3,3.41418]
[1721207528386,0.6518914,3491.9,3491.3,3.41418]
[1721207529506,0.6518914,3491.9,3491.4,2.86417]
[1721207529716,0.6518914,3491.9,3491.5,0.55]
[1721207529881,0.31281422,3492.0,3491.5,0.55]
[1721207530595,2.86362,3492.1,3491.5,0.55]
[1721207530763,2.86353,3492.2,3491.5,0.55]
[1721207530764,3.51554019,3492.0,3491.5,0.55]
[1721207530967,0.65189717,3491.9,3491.3,3.41425]
[1721207531372,0.6519112,3491.8,3491.4,2.86416]
[1721207531586,2.86371,3492.0,3491.5,0.55]
[1721207531910,0.65188047,3491.9,3491.5,0.55]
[1721207533909,1.28979252,3491.9,3491.5,0.55]
[1721207534082,0.63791205,3491.9,3491.5,0.55]
[1721207534694,0.65188822,3491.8,3491.5,0.55]
[1721207535117,2.10078562,3493.2,3491.7,7.132]
[1721207535285,0.65162028,3493.1,3491.8,4.54567247]
[1721207535486,0.65162028,3493.0,3492.3,2.86336]
[1721207535688,0.65162028,3493.0,3492.4,0.55]
[1721207535889,0.65162028,3493.0,3492.4,3.4133]
[1721207536088,0.65162028,3493.0,3492.4,0.55]
[1721207536089,4.39813631,3493.0,3492.4,0.55]
[1721207536293,0.65162028,3492.9,3492.3,0.55]
[1721207536493,0.65162028,3492.9,3492.0,0.55]
[1721207536703,0.65162028,3492.8,3492.0,0.55]
[1721207536904,2.86325,3492.6,3492.0,0.55]
[1721207537091,1.00310731,3492.5,3492.0,0.55]
[1721207537315,0.65162028,3492.4,3492.0,0.55]
[1721207537624,0.35148703,3492.5,3492.0,0.55]
[1721207537824,0.65180397,3492.4,3492.0,0.55]
[1721207538223,2.8635,3492.3,3492.0,0.55]
[1721207538522,1.03850568,3492.2,3491.7,0.55]
[1721207538723,0.65182658,3492.1,3491.7,0.55]
[1721207538887,0.65182658,3492.1,3491.5,0.55]
[1721207539095,3.51544658,3492.1,3491.5,0.55]
[1721207539421,3.51552658,3492.0,3491.5,0.55]
[1721207539628,2.8637,3492.0,3491.5,0.55]
[1721207540833,2.86342,3492.4,3491.6,2.864]
[1721207541006,3.51525679,3492.3,3491.7,0.55]
[1721207541209,0.65181679,3492.2,3491.7,0.55]
[1721207543667,2.86298,3492.9,3492.0,2.86361]
[1721207543787,2.86298,3492.9,3492.2,2.8635]
[1721207543788,0.65169946,3492.8,3492.2,2.8635]
[1721207543992,2.86298,3492.9,3492.3,0.55]
[1721207544240,0.65165226,3492.8,3492.3,0.55]
[1721207544961,2.86276,3493.2,3492.5,2.86327]
[1721207545240,0.6515983,3493.1,3492.6,0.55]
[1721207545588,3.5143983,3493.1,3492.6,0.55]
[1721207545795,2.8628,3493.1,3492.6,0.55]
[1721207545990,0.65160797,3493.0,3492.6,0.55]
[1721207547417,2.8628,3493.1,3492.5,3.41326]
[1721207547617,0.65160534,3493.0,3492.5,3.41326]
[1721207547899,3.51447534,3493.0,3492.5,0.55]
[1721207548105,2.86287,3493.0,3492.4,0.55]
[1721207548619,2.86287,3493.0,3492.4,3.41332]
[1721207548828,0.65161271,3492.9,3492.4,3.41332]
[1721207549338,2.86287,3493.0,3492.4,3.41332]
[1721207549494,0.65161322,3492.9,3492.4,0.55]
[1721207549688,0.65161322,3492.9,3491.9,7.36]
[1721207549689,2.86335,3492.5,3491.9,7.36]
[1721207549941,2.86335,3492.5,3491.6,2.4315]
[1721207549942,2.86335,3492.5,3491.8,2.86381]
[1721207550159,3.51515105,3492.4,3491.8,2.86381]
[1721207550325,0.65179105,3492.3,3491.8,2.86381]
[1721207550653,2.86336,3492.4,3491.7,2.86392]
[1721207550959,0.65179879,3492.3,3491.6,2.4315]
[1721207551140,0.65179879,3492.3,3491.7,2.8639]
[1721207551812,3.51527879,3492.3,3491.7,2.8639]
[1721207552012,2.86348,3492.3,3491.7,2.8639]
[1721207552242,2.86348,3492.3,3491.8,0.55]
[1721207552455,5.727,3492.3,3491.8,0.55]
[1721207552731,2.86355,3492.2,3491.8,0.55]
[1721207553050,2.86355,3492.2,3491.7,0.55]
[1721207553243,2.86368,3492.1,3491.6,0.55]
[1721207553559,2.86369,3492.0,3491.6,0.55]
[1721207554123,2.86393,3491.8,3491.5,7.36]
[1721207554349,2.8639,3491.8,3491.0,7.36]
[1721207554650,3.51596819,3491.7,3491.0,7.36]
[1721207554812,0.65196819,3491.6,3491.0,7.36]
[1721207555434,0.65196819,3491.6,3491.0,10.22449]
[1721207555828,0.65196819,3491.6,3491.1,0.55]
[1721207556347,2.864,3491.7,3491.1,0.55]
[1721207558060,2.86413,3491.5,3491.1,0.55]
[1721207558216,2.864,3491.7,3491.1,0.55]
[1721207558420,5.728,3491.7,3491.1,0.55]
[1721207558687,2.86405,3491.6,3491.1,0.55]
[1721207559219,2.8639,3491.8,3491.1,0.55]
[1721207559961,2.86393,3491.7,3491.1,3.41442]
[1721207560417,2.8638,3491.9,3491.1,0.55]
[1721207560613,2.86395,3491.7,3491.1,0.55]
[1721207560845,0.286395,3491.6,3491.1,0.55]
[1721207561123,2.86395,3491.7,3491.1,0.55]
[1721207562057,2.86402,3491.6,3491.1,0.55]
[1721207562357,2.86395,3491.7,3491.1,0.55]
[1721207562358,2.86415,3491.5,3491.1,0.55]
[1721207562562,2.86428,3491.3,3491.0,7.36]
[1721207563465,2.86442,3491.1,3491.0,7.36]
[1721207563692,2.86442,3491.1,3490.5,2.8649]
[1721207563858,2.86442,3491.1,3490.6,0.55]
[1721207564169,2.4692,3491.7,3490.6,0.55]
[1721207564386,2.8644,3491.2,3490.5,3.41486]
[1721207566233,2.86418,3491.4,3490.6,2.86482]
[1721207566432,2.86418,3491.4,3490.7,0.55]
[1721207566631,2.86418,3491.4,3490.7,3.41474]
[1721207567465,2.86404,3491.6,3490.7,0.55]
[1721207567669,2.86404,3491.6,3490.4,10.38]
[1721207567670,2.86404,3491.6,3490.5,3.55]
[1721207567876,2.86404,3491.6,3490.6,2.3071]
[1721207568168,2.86404,3491.6,3490.7,0.55]
[1721207568468,2.86404,3491.6,3491.0,2.8645]
[1721207568628,2.86404,3491.6,3491.1,0.55]
[1721207568864,2.86398,3491.7,3491.1,3.41441]
[1721207569063,2.86398,3491.7,3491.1,3.755875]
[1721207571111,2.86378,3491.9,3491.1,3.755875]
[1721207572160,2.86394,3491.7,3491.1,3.755875]
[1721207576109,2.86394,3491.7,3491.1,0.55]
[1721207576627,2.86394,3491.7,3491.1,3.41442]
[1721207576922,2.86394,3491.7,3491.1,0.55]
[1721207577084,2.86394,3491.7,3491.0,2.86444]
[1721207577288,2.86394,3491.7,3491.1,3.41441]
[1721207577490,2.86394,3491.7,3491.2,0.55]
[1721207578432,5.72795,3491.7,3491.0,3.4145]
[1721207578733,2.86422,3491.4,3491.0,0.55]
[1721207578934,2.86422,3491.4,3490.9,3.55]
[1721207579486,2.86403,3491.6,3491.0,2.8645]
[1721207579726,2.86403,3491.6,3491.1,0.55]
[1721207580038,2.86403,3491.6,3491.1,3.41442]
[1721207580333,2.86396,3491.7,3491.1,3.41442]
[1721207581215,5.72797,3491.7,3491.1,3.41442]
[1721207582749,2.86402,3491.6,3491.1,0.55]
[1721207583042,2.86435,3491.2,3490.8,7.36]
[1721207583348,2.4269,3491.5,3490.1,2.3289]
[1721207583349,2.8648,3490.7,3490.3,7.36]
[1721207584636,2.86484,3490.6,3490.3,7.36]
[1721207584834,5.73,3490.4,3490.3,7.36]
[1721207585162,5.73,3490.4,3489.5,7.36]
[1721207585163,2.8652,3490.2,3489.5,7.36]
[1721207585310,2.8652,3490.2,3489.3,5.2945]
[1721207585311,2.86533,3490.0,3489.3,5.2945]
[1721207585923,2.86533,3490.0,3489.3,2.4286]
[1721207586423,2.86533,3490.0,3489.2,7.36]
[1721207586424,2.86543,3489.9,3489.2,7.36]
[1721207587227,2.86543,3489.9,3489.2,10.22595]
[1721207587442,2.86543,3489.9,3489.3,2.86589]
[1721207587755,2.8653,3490.1,3489.3,2.86589]
[1721207588057,2.8653,3490.1,3489.4,0.55]
[1721207588260,2.86533,3490.0,3489.4,0.55]
[1721207589340,2.86518,3490.2,3489.4,3.4158]
[1721207589522,2.86518,3490.2,3489.5,2.86572]
[1721207589717,2.86518,3490.2,3489.6,0.55]
[1721207590208,2.865,3490.4,3489.6,3.41565]
[1721207590209,5.73006,3490.4,3489.6,3.41565]
[1721207590506,2.86509,3490.3,3489.6,3.41565]
[1721207591374,5.25512,3490.5,3489.6,0.55]
[1721207591375,2.86516,3490.2,3489.6,0.55]
[1721207591660,2.86516,3490.2,3489.6,2.86565]
[1721207591814,2.86516,3490.2,3489.7,0.55]
[1721207593124,2.86501,3490.4,3489.7,0.55]
[1721207593324,2.86513,3490.3,3489.7,0.55]
[1721207593838,2.86513,3490.3,3489.7,3.41556]
[1721207594962,2.86513,3490.3,3489.7,0.55]
[1721207595162,2.86517,3490.2,3489.6,0.55]
[1721207597733,2.86539,3490.0,3489.6,0.55]
[1721207597929,2.86547,3489.9,3489.4,0.55]
[1721207598151,2.86549,3489.8,3489.2,10.22597]
[1721207599244,2.86566,3489.6,3489.2,7.36]
[1721207599415,2.86549,3489.8,3489.2,7.36]
[1721207600624,2.86536,3490.0,3489.2,7.36]
[1721207600625,2.86532,3490.0,3489.3,0.55]
[1721207600826,2.86554,3489.8,3489.3,0.55]
[1721207601064,2.86558,3489.7,3489.3,0.55]
[1721207603168,2.4571,3489.9,3489.3,0.545821]
[1721207603461,2.86582,3489.4,3489.3,0.545821]
[1721207604153,5.32258,3489.9,3489.3,0.545821]
[1721207604327,2.8656,3489.7,3489.0,2.86613]
[1721207604672,2.86567,3489.6,3489.0,2.86613]
[1721207605527,2.86567,3489.6,3489.1,0.55]
[1721207607290,2.86574,3489.5,3489.1,0.55]
[1721207607488,0.573141,3489.4,3488.9,0.55]
[1721207607691,2.86574,3489.5,3488.9,0.55]
[1721207613764,2.86542,3489.9,3489.3,2.86588]
[1721207613978,2.3173,3490.3,3489.4,0.55]
[1721207614179,2.835521,3490.3,3489.4,0.55]
[1721207614402,2.8654,3490.0,3489.4,0.55]
[1721207614606,2.8654,3490.0,3489.3,3.41588]
[1721207614761,2.8654,3490.0,3489.4,2.86582]
[1721207614967,2.8654,3490.0,3489.5,0.55]
[1721207615980,2.8654,3490.0,3489.4,0.55]
[1721207616565,2.8654,3490.0,3489.4,3.41581]
[1721207617194,2.8654,3490.0,3489.4,0.55]
[1721207617409,2.8654,3490.0,3489.2,0.55]
[1721207617768,2.8654,3490.0,3489.3,2.86584]
[1721207618005,2.8654,3490.0,3489.4,0.55]
[1721207618507,5.26191,3490.7,3489.5,2.3156]
[1721207618809,5.86462,3490.9,3489.5,2.3156]
[1721207618810,2.86462,3490.9,3490.1,2.86518]
[1721207619022,1.191562,3491.9,3489.6,3.24856]
[1721207619023,2.86431,3491.3,3490.5,2.86491]
[1721207619207,3.3135386,3491.3,3490.5,2.86491]
[1721207619417,2.86436,3491.2,3490.6,0.55]
[1721207623026,0.85747486,3491.3,3490.6,0.55]
[1721207623027,2.86442,3491.1,3490.6,0.55]
[1721207625929,2.86484,3490.6,3489.7,2.4598]
[1721207626372,2.86475,3490.8,3490.0,2.86527]
[1721207626561,2.86475,3490.8,3489.7,2.4598]
[1721207626562,2.86475,3490.7,3490.1,2.86522]